bitfinex-derivatives/quotes_SOLF0:USTF0_20220102
["timestamp","ask_amount","ask_price","bid_price","bid_amount"]
[1641126973237,3.0,175.91,175.88,27.66479]
[1641126973436,7.793,175.91,175.88,27.66479]
[1641126973638,19.90100203,175.91,175.88,27.66479]
[1641126973838,16.90100203,175.91,175.88,27.66479]
[1641126974438,4.793,175.91,175.88,27.66479]
[1641126974637,12.10800203,175.92,175.88,27.66479]
[1641126974836,12.10800203,175.92,175.88,33.47479]
[1641126975237,43.24110203,175.94,175.88,33.47479]
[1641126976741,43.24110203,175.94,175.88,27.01766469]
[1641126976940,43.24110203,175.94,175.88,5.81]
[1641126977445,43.24110203,175.94,175.89,27.66479]
[1641126978047,43.24110203,175.94,175.88,5.81]
[1641126978247,2.75741012,175.93,175.9,1.27829594]
[1641126978849,2.75741012,175.93,175.89,1.27829594]
[1641126979653,2.75741012,175.93,175.89,28.94308594]
[1641126980050,2.75741012,175.93,175.9,1.27829594]
[1641126982653,12.10800203,175.95,175.9,1.27829594]
[1641126983154,14.86541215,175.95,175.9,1.27829594]
[1641126984055,14.86541215,175.95,175.9,5.67129594]
[1641126984558,14.86541215,175.95,175.91,1.27829594]
[1641126985757,2.75741012,175.95,175.9,1.27829594]
[1641126986360,14.86541215,175.95,175.9,1.27829594]
[1641126986559,3.0,175.94,175.9,1.27829594]
[1641126987062,14.86541215,175.95,175.9,1.27829594]
[1641126987462,14.86541215,175.93,175.89,27.66479]
[1641126988362,12.10800203,175.94,175.9,1.27829042]
[1641126989365,12.10800203,175.93,175.85,12.12881053]
[1641126989569,15.10800203,175.93,175.85,12.12881053]
[1641126989764,12.10800203,175.93,175.85,12.12881053]
[1641126989965,12.10800203,175.93,175.89,27.66479]
[1641126990166,12.10800203,175.92,175.86,27.66479]
[1641126990367,18.01200203,175.92,175.86,27.66479]
[1641126990568,3.0,175.9,175.86,27.66479]
[1641126990769,3.0,175.87,175.86,27.66479]
[1641126990967,9.779,175.87,175.86,27.66479]
[1641126991167,6.779,175.87,175.86,27.66479]
[1641126992075,2.75741012,175.89,175.86,27.66479]
[1641126992373,2.75741012,175.87,175.86,32.47979]
[1641126992975,2.75741012,175.9,175.86,33.75802699]
[1641126993876,2.75741012,175.9,175.87,1.27823699]
[1641126994375,2.75741012,175.92,175.87,1.27823699]
[1641126995974,30.42220012,175.93,175.87,1.27823699]
[1641126997379,2.75741012,175.92,175.9,4.03589081]
[1641126999283,30.42220012,175.93,175.9,4.03589081]
[1641126999479,2.75741012,175.93,175.9,8.31989081]
[1641126999881,2.75741012,175.92,175.91,4.03589081]
[1641127000582,2.75741012,175.92,175.87,13.40704752]
[1641127000785,2.75741012,175.95,175.88,12.12881053]
[1641127001182,2.75741012,175.95,175.88,39.79360053]
[1641127001484,2.75741012,175.95,175.92,4.03533042]
[1641127003689,12.10800203,175.96,175.93,4.03533042]
[1641127003889,14.86541215,175.97,175.93,4.03533042]
[1641127004992,17.86541215,175.97,175.93,4.03533042]
[1641127005390,3.0,175.95,175.93,4.03533042]
[1641127005595,8.571,175.95,175.93,4.03533042]
[1641127006291,2.75741012,175.94,175.91,27.66479]
[1641127007091,14.86541215,175.96,175.91,27.66479]
[1641127007892,14.86541215,175.97,175.91,31.70012042]
[1641127009092,12.10800203,175.96,175.91,27.66479]
[1641127011296,14.86541215,175.97,175.91,31.70012042]
[1641127011497,14.86541215,175.97,175.91,36.38812042]
[1641127011896,12.10800203,175.96,175.92,5.31367155]
[1641127012598,4.03524416,175.93,175.92,5.31367155]
[1641127013300,4.03524416,175.93,175.92,1.27834113]
[1641127016004,12.10800203,175.96,175.92,5.31362876]
[1641127017405,15.10800203,175.96,175.92,5.31362876]
[1641127017809,12.10800203,175.96,175.92,5.31362876]
[1641127018107,12.10800203,175.96,175.92,4.03528763]
[1641127018407,14.86541215,175.96,175.91,31.70007763]
[1641127019109,14.86541215,175.96,175.92,5.31361319]
[1641127021109,12.10800203,175.96,175.92,4.03528763]
[1641127021509,14.86541215,175.96,175.92,4.03528763]
[1641127024215,12.10800203,175.96,175.92,4.03528763]
[1641127024913,12.10800203,175.95,175.91,4.03528763]
[1641127026716,12.10800203,175.94,175.9,4.03528763]
[1641127027727,39.77279203,175.94,175.9,4.03528763]
[1641127028825,2.75741012,175.93,175.9,4.03528763]
[1641127030223,2.75741012,175.93,175.89,5.31361319]
[1641127031124,2.75741012,175.93,175.9,4.03528763]
[1641127032423,27.66479,175.94,175.91,4.03528763]
[1641127032826,29.4893,175.96,175.91,4.03528763]
[1641127034028,2.75296837,175.95,175.91,4.03528763]
[1641127034730,4.0293452,175.94,175.91,4.03528763]
[1641127035931,2.75296837,175.95,175.92,4.03528763]
[1641127036132,12.10800203,175.96,175.93,3.0]
[1641127036428,12.10800203,175.96,175.92,10.42428763]
[1641127036429,2.25410203,175.96,175.92,10.42428763]
[1641127036637,31.80190382,176.0,175.92,9.389]
[1641127036831,29.4193,176.04,175.92,6.389]
[1641127037130,29.4193,176.04,175.92,9.389]
[1641127037333,32.4193,176.04,175.92,6.389]
[1641127037834,10.03718207,176.03,175.97,4.03451685]
[1641127038032,27.66479,176.02,175.97,8.87251685]
[1641127038539,27.66479,176.02,175.97,4.838]
[1641127039337,27.66479,176.02,175.97,8.87240143]
[1641127040337,27.66479,176.02,175.97,4.838]
[1641127040540,10.03885755,176.01,175.96,4.03439861]
[1641127041139,10.03885755,176.01,175.94,29.8981]
[1641127042039,10.03885755,176.01,175.96,4.03449303]
[1641127042742,10.03885755,176.01,175.94,29.8981]
[1641127043442,10.03885755,176.01,175.96,4.03450534]
[1641127044144,10.03885755,176.01,175.94,29.8981]
[1641127044745,10.03885755,176.01,175.96,4.03451431]
[1641127044945,10.03885755,176.01,175.96,8.31851431]
[1641127045346,10.03885755,176.01,175.96,4.284]
[1641127046061,10.03885755,176.01,175.96,8.31850761]
[1641127046847,10.03885755,176.01,175.96,4.284]
[1641127047547,27.66479,176.02,175.97,4.03441725]
[1641127048447,3.0,176.01,175.97,4.03441725]
[1641127048850,30.66479,176.02,175.94,29.8981]
[1641127049049,27.66479,176.02,175.94,29.8981]
[1641127049548,27.66479,176.02,175.97,4.034409]
[1641127050449,27.66479,176.02,175.94,29.8981]
[1641127051352,27.66479,176.02,175.97,4.03434774]
[1641127052053,27.66479,176.02,175.97,8.66334774]
[1641127052254,27.66479,176.02,175.97,4.629]
[1641127052854,27.66479,176.02,175.97,8.66327668]
[1641127053656,27.66479,176.02,175.97,4.629]
[1641127054360,27.66479,176.02,175.97,8.6633382]
[1641127055158,27.66479,176.02,175.97,4.629]
[1641127055857,27.66479,176.02,175.97,8.66323429]
[1641127056660,27.66479,176.02,175.97,4.629]
[1641127057161,27.66479,176.02,175.94,29.8981]
[1641127057360,27.66479,176.02,175.97,4.0342647]
[1641127058062,27.66479,176.02,175.96,5.057]
[1641127058461,30.66479,176.02,175.96,5.057]
[1641127058661,30.66479,176.02,175.94,29.8981]
[1641127058863,30.66479,176.02,175.98,4.03416163]
[1641127059162,27.66479,176.02,175.98,4.03416163]
[1641127059562,27.66479,176.02,175.94,29.8981]
[1641127059563,27.66479,176.02,175.97,4.03428293]
[1641127060263,27.66479,176.02,175.94,29.8981]
[1641127060964,27.66479,176.02,175.97,4.03429736]
[1641127061767,27.66479,176.02,175.96,6.873]
[1641127062370,27.66479,176.02,175.98,4.03430532]
[1641127063267,27.66479,176.02,175.96,6.873]
[1641127063868,27.66479,176.02,175.98,4.03426392]
[1641127064768,27.66479,176.02,175.96,6.873]
[1641127065369,27.66479,176.02,175.94,29.8981]
[1641127065669,27.66479,176.02,175.98,4.03418594]
[1641127066069,27.66479,176.02,175.94,29.8981]
[1641127066772,39.76730117,176.02,175.98,4.03417039]
[1641127067579,27.66479,176.02,175.98,6.566]
[1641127068879,39.76712599,176.02,175.98,10.600112]
[1641127069781,27.66479,176.02,175.98,6.566]
[1641127070482,39.76709015,176.02,175.98,10.60010005]
[1641127071481,39.76709015,176.02,175.98,6.566]
[1641127071681,39.76709015,176.02,175.94,42.00061117]
[1641127072281,27.66479,176.02,175.94,42.00061117]
[1641127072482,27.66479,176.02,175.98,4.03405078]
[1641127073782,27.66479,176.02,175.96,6.781]
[1641127074582,27.66479,176.02,176.0,4.03376698]
[1641127074784,27.66479,176.02,176.0,8.93576698]
[1641127075583,27.66479,176.02,176.0,4.902]
[1641127076383,12.10191947,176.03,176.0,4.902]
[1641127076583,27.66479,176.05,176.0,4.902]
[1641127076786,27.66479,176.05,175.97,30.4253]
[1641127076987,2.75433924,176.01,176.0,4.03363065]
[1641127077187,8.71133924,176.01,176.0,4.03363065]
[1641127078088,5.957,176.01,175.99,4.03385432]
[1641127078287,12.10156295,176.03,175.99,4.03385432]
[1641127079286,10.03479693,176.04,175.99,4.03385432]
[1641127079486,14.85562822,176.04,176.0,4.03372749]
[1641127080086,14.85562822,176.04,175.97,30.4253]
[1641127080087,30.66479,176.05,175.97,30.4253]
[1641127080291,30.66479,176.05,175.98,1.27927409]
[1641127080989,59.46669382,176.08,176.02,3.0]
[1641127081188,14.85571619,176.04,176.02,6.664]
[1641127081991,2.75446936,176.07,176.03,1.27940809]
[1641127082689,3.0,176.07,176.02,18.76651117]
[1641127082890,27.66479,176.08,176.02,18.76651117]
[1641127083090,27.66479,176.08,176.05,4.03259893]
[1641127083891,12.10124683,176.09,176.05,4.03259893]
[1641127084093,2.75335393,176.07,176.03,1.27938098]
[1641127084791,12.09783062,176.09,176.05,4.03261021]
[1641127085391,12.09783062,176.09,176.05,8.38761021]
[1641127085992,14.85038497,176.1,176.05,4.355]
[1641127086392,14.85038497,176.1,176.03,1.27941554]
[1641127086593,42.51517497,176.1,176.02,31.1138]
[1641127086793,12.09716822,176.08,176.04,4.03265252]
[1641127087193,12.09716822,176.08,176.05,4.03250756]
[1641127087394,14.85038497,176.09,176.05,4.03250756]
[1641127088094,12.09716822,176.09,176.05,4.03250756]
[1641127088298,31.4886,176.12,176.05,5.714]
[1641127088696,27.66479,176.11,176.05,5.714]
[1641127089803,27.66479,176.11,176.02,58.77859]
[1641127091004,12.09716822,176.09,176.05,4.03250756]
[1641127091204,15.09716822,176.09,176.05,4.03250756]
[1641127092307,2.75308686,176.08,176.05,4.03250756]
[1641127093711,5.75308686,176.08,176.05,4.03250756]
[1641127094608,30.41787686,176.07,176.04,4.03250756]
[1641127095608,2.75308686,176.06,176.03,5.31191282]
[1641127096809,9.03708686,176.06,176.03,5.31191282]
[1641127097708,2.75308686,176.06,176.03,5.31191282]
[1641127097908,2.75308686,176.05,176.03,5.31191282]
[1641127098812,2.75308686,176.06,176.03,5.31191282]
[1641127100111,2.75308686,176.06,176.02,35.14630756]
[1641127100711,4.03303742,176.03,176.02,35.14630756]
[1641127100911,4.03303742,176.03,176.02,4.03250756]
[1641127101111,7.03303742,176.03,176.02,4.03250756]
[1641127101315,8.22603742,176.03,175.99,12.10251117]
[1641127102213,4.193,176.03,175.99,12.10251117]
[1641127102513,2.75308686,176.06,175.98,4.0339263]
[1641127102514,14.85025508,176.02,175.98,4.0339263]
[1641127102912,42.51504508,176.02,175.98,4.0339263]
[1641127103314,39.76195822,176.02,175.98,4.0339263]
[1641127105014,2.75308686,176.01,176.0,4.0339263]
[1641127105213,2.75308686,176.01,176.0,9.1289263]
[1641127105713,27.66479,176.02,176.0,5.095]
[1641127106415,2.75308686,176.01,176.0,5.095]
[1641127107114,2.75308686,176.01,176.0,10.40821899]
[1641127108216,27.66479,176.02,176.0,10.40821899]
[1641127109117,2.75437249,176.01,176.0,9.1289263]
[1641127109916,2.75437249,176.01,176.0,5.095]
[1641127110118,5.75437249,176.06,176.0,6.37435194]
[1641127110618,2.75437249,176.06,176.0,6.37435194]
[1641127111417,2.75437249,176.06,176.02,4.03309592]
[1641127112121,2.75437249,176.06,176.03,4.03309592]
[1641127112818,2.75437249,176.06,176.02,4.03309592]
[1641127114721,2.75437249,176.06,176.04,4.03309592]
[1641127115623,2.75437249,176.06,176.04,10.37109592]
[1641127116020,2.75437249,176.06,176.04,6.338]
[1641127117526,2.75437249,176.06,176.03,4.03309592]
[1641127117725,2.75437249,176.06,176.04,4.03309592]
[1641127118731,2.75437249,176.06,176.03,4.03309592]
[1641127119429,2.75437249,176.06,176.02,4.03309592]
[1641127120731,14.85154071,176.06,176.02,4.03309592]
[1641127121731,12.09716822,176.06,176.04,4.03309592]
[1641127121932,2.75437249,176.07,176.04,4.03309592]
[1641127122131,3.0,176.06,176.04,4.03309592]
[1641127122433,2.75437249,176.07,176.04,4.03309592]
[1641127122632,14.85154071,176.07,176.03,4.03309592]
[1641127125536,17.85154071,176.07,176.03,4.03309592]
[1641127126238,14.85154071,176.07,176.03,4.03309592]
[1641127126646,2.75437249,176.06,176.03,4.03309592]
[1641127127337,14.85154071,176.07,176.03,4.03309592]
[1641127128039,14.85154071,176.07,176.03,10.29809592]
[1641127128639,17.85154071,176.07,176.03,10.29809592]
[1641127129441,14.85154071,176.07,176.03,10.29809592]
[1641127129640,2.75437249,176.06,176.03,10.29809592]
[1641127130342,14.85154071,176.07,176.03,10.29809592]
[1641127132944,17.85154071,176.07,176.03,10.29809592]
[1641127133147,3.0,176.06,176.03,4.03309592]
[1641127133945,14.85154071,176.05,176.01,4.03309592]
[1641127136144,17.85154071,176.05,176.01,4.03309592]
[1641127136645,45.51633071,176.05,176.01,4.03309592]
[1641127136845,2.75437249,176.04,176.01,4.03309592]
[1641127138046,14.85154071,176.04,176.0,4.03309592]
[1641127139850,4.03338927,176.01,176.0,4.03309592]
[1641127142051,2.75437249,176.03,176.0,4.03309592]
[1641127145559,4.01893829,176.03,175.98,5.31241363]
[1641127147056,8.36793829,176.04,175.98,5.31241363]
[1641127147654,4.349,176.04,175.97,30.9232]
[1641127147856,4.01887175,176.03,175.97,30.9232]
[1641127149556,33.75479,176.06,175.97,30.9232]
[1641127149758,4.01874492,176.04,175.99,4.01874492]
[1641127149955,3.0,176.02,175.99,4.01874492]
[1641127150158,3.0,176.02,175.98,1.27464074]
[1641127150957,4.01930263,176.01,175.96,4.01930263]
[1641127152061,4.01925296,176.02,175.96,1.27458994]
[1641127152661,4.01925296,176.02,175.96,7.49658994]
[1641127152862,58.48739,176.03,175.96,7.49658994]
[1641127153066,62.50630366,176.03,175.97,4.01891366]
[1641127153567,58.48739,176.03,175.97,4.01891366]
[1641127153768,27.66479,176.03,175.97,5.2935036]
[1641127154468,27.66479,176.03,175.98,4.01891366]
[1641127155070,31.68356234,176.03,175.98,1.27458994]
[1641127155871,27.66479,176.03,175.97,4.945]
[1641127156170,2.75418208,176.02,176.01,4.03348778]
[1641127156871,27.66479,176.03,175.99,1.27931003]
[1641127157574,2.75415014,176.02,176.01,4.03345875]
[1641127158176,27.66479,176.03,176.0,4.03356439]
[1641127159076,2.7542238,176.02,176.01,4.03352571]
[1641127159779,44.25917712,176.05,175.99,1.27930195]
[1641127160178,12.10057712,176.05,175.99,1.27930195]
[1641127160378,2.75409112,176.04,176.01,4.03340509]
[1641127161086,39.76536712,176.06,175.98,30.7394]
[1641127161281,5.75408849,176.05,175.99,1.27931421]
[1641127161480,2.75408849,176.05,175.99,28.94410421]
[1641127161781,2.75409145,176.04,176.01,4.03340538]
[1641127161981,2.75409145,176.04,176.01,9.28040538]
[1641127162887,2.74969044,176.05,176.01,5.247]
[1641127163887,12.10057712,176.07,176.02,1.27740277]
[1641127164086,30.2606,176.08,176.02,1.27740277]
[1641127164485,30.66479,176.1,176.02,1.27740277]
[1641127164685,30.66479,176.1,176.02,33.41780277]
[1641127164885,30.66479,176.1,176.05,4.02619222]
[1641127165687,2.74882692,176.09,176.03,1.27740277]
[1641127166488,30.66479,176.1,176.05,4.02621695]
[1641127166990,2.74883265,176.09,176.03,1.27739833]
[1641127167788,42.76536712,176.1,176.04,4.02621191]
[1641127168590,42.76536712,176.1,176.03,1.27739445]
[1641127168591,2.74887528,176.09,176.03,1.27739445]
[1641127169293,5.74887528,176.09,176.04,4.02626565]
[1641127169691,2.74887528,176.09,176.04,4.02626565]
[1641127169892,2.74887528,176.09,176.02,32.1404]
[1641127170092,2.74887528,176.08,176.02,36.1669154]
[1641127170895,17.8494524,176.09,176.02,32.1404]
[1641127171396,4.02651285,176.05,176.02,36.16691285]
[1641127171596,4.02651285,176.05,176.02,4.02651285]
[1641127171997,2.74887528,176.08,176.0,1.27737084]
[1641127172196,2.74887528,176.08,176.0,6.20337084]
[1641127172697,4.02648102,176.05,176.02,4.02648102]
[1641127173397,14.8494524,176.09,176.0,4.926]
[1641127174016,4.02636653,176.05,176.02,4.02636653]
[1641127175098,4.02636653,176.05,175.99,57.08849]
[1641127175099,14.8494524,176.09,175.99,57.08849]
[1641127175299,4.02613521,176.06,176.03,4.02613521]
[1641127175898,2.74887528,176.09,176.05,4.03233614]
[1641127176198,14.8494524,176.09,176.05,4.03233614]
[1641127176802,30.66479,176.1,176.01,12.10251117]
[1641127177403,30.66479,176.1,176.05,4.032365]
[1641127177601,14.85004202,176.09,176.05,4.032365]
[1641127178203,30.66479,176.1,176.01,12.10251117]
[1641127178804,14.85038943,176.09,176.04,4.03244973]
[1641127179407,14.85038943,176.09,176.0,19.47993214]
[1641127179606,14.85038943,176.09,176.05,4.03240257]
[1641127180208,12.0973492,176.08,176.04,4.03251079]
[1641127180808,12.78300045,176.09,176.0,19.47993214]
[1641127181713,2.75304023,176.09,176.0,13.37991908]
[1641127181912,3.0,176.08,176.02,4.01955899]
[1641127182112,9.682,176.08,176.02,4.01955899]
[1641127182311,6.682,176.08,176.02,4.01955899]
[1641127182513,9.682,176.08,176.0,1.27740791]
[1641127182714,2.75304023,176.07,176.01,4.01985923]
[1641127183313,38.8722,176.08,176.0,1.27740791]
[1641127184013,2.74458234,176.07,176.01,4.01984458]
[1641127184615,41.8722,176.08,176.0,1.27740791]
[1641127185317,2.74460252,176.07,176.01,4.01986292]
[1641127186015,32.1902,176.08,176.0,1.27740791]
[1641127186219,41.8712,176.08,176.0,1.27740791]
[1641127186615,2.74469426,176.07,176.01,4.01994633]
[1641127186819,8.24869426,176.07,176.01,4.01994633]
[1641127187222,2.7448028,176.06,176.0,5.29745291]
[1641127188527,2.74473802,176.07,176.01,4.0199861]
[1641127189227,35.1902,176.08,176.0,1.27525715]
[1641127189927,2.74458753,176.07,176.01,4.0198493]
[1641127190130,2.74458753,176.07,176.03,3.0]
[1641127190328,2.74458753,176.07,176.03,7.541]
[1641127190534,12.05867698,176.1,176.04,3.0]
[1641127190831,30.8092,176.13,176.06,4.01889474]
[1641127191529,30.8092,176.13,176.04,30.3365]
[1641127191729,4.01860118,176.11,176.04,30.3365]
[1641127192032,4.01860118,176.11,176.05,27.66479]
[1641127192432,42.86787698,176.13,176.09,4.03152981]
[1641127192630,12.05867698,176.13,176.09,10.52152981]
[1641127193533,27.66479,176.14,176.09,6.49]
[1641127193832,39.75876589,176.14,176.1,4.0313253]
[1641127194132,39.75876589,176.14,176.09,6.49]
[1641127194531,42.75876589,176.14,176.09,6.49]
[1641127194932,42.75876589,176.14,176.1,4.03133031]
[1641127195532,42.75876589,176.14,176.09,6.49]
[1641127195836,12.09397589,176.13,176.09,10.52154639]
[1641127196334,12.09397589,176.13,176.09,6.49]
[1641127196933,12.09397589,176.13,176.09,10.52156495]
[1641127197637,12.09397589,176.13,176.09,6.49]
[1641127197837,12.09397589,176.13,176.05,39.76730117]
[1641127198439,30.66479,176.14,176.09,4.03157976]
[1641127198944,12.09477139,176.13,176.05,39.76730117]
[1641127200043,30.66479,176.14,176.09,4.03151132]
[1641127200844,30.66479,176.14,176.05,39.76730117]
[1641127200845,30.66479,176.14,176.06,4.01409635]
[1641127201345,30.66479,176.14,176.07,4.01409635]
[1641127201546,30.66479,176.14,176.07,8.72909635]
[1641127202745,30.66479,176.14,176.07,4.715]
[1641127203347,30.66479,176.14,176.07,8.7289796]
[1641127203750,30.66479,176.14,176.07,4.0139796]
[1641127205450,30.66479,176.14,176.06,4.0139796]
[1641127207654,4.01410933,176.12,176.06,4.0139796]
[1641127208151,30.66479,176.14,176.06,4.0139796]
[1641127208852,4.01410964,176.12,176.06,4.0139796]
[1641127210052,3.0,176.1,176.06,4.0139796]
[1641127210252,3.0,176.08,176.06,4.0139796]
[1641127210451,8.879,176.08,176.06,4.0139796]
[1641127210853,8.879,176.08,176.04,4.0139796]
[1641127211153,5.879,176.08,176.04,4.0139796]
[1641127211953,27.66479,176.05,176.03,4.0139796]
[1641127213058,27.66479,176.05,176.04,4.0139796]
[1641127218158,27.66479,176.05,176.0,4.0139796]
[1641127219164,33.79479,176.05,176.01,0.80855843]
[1641127219661,33.79479,176.05,176.0,4.0139796]
[1641127219862,33.79479,176.05,176.01,0.80855843]
[1641127220262,29.3678,176.07,176.04,0.80855843]
[1641127220461,27.66479,176.11,176.01,4.769]
[1641127220660,29.9959,176.1,176.02,32.1238]
[1641127221162,29.9959,176.1,176.05,0.80855843]
[1641127221761,29.9959,176.1,176.03,0.80855843]
[1641127222262,29.9959,176.1,176.03,28.47334843]
[1641127222462,35.8209,176.1,176.03,28.47334843]
[1641127224167,35.8209,176.1,176.03,27.66479]
[1641127224365,35.8209,176.1,176.02,32.1238]
[1641127224666,29.9959,176.1,176.02,32.1238]
[1641127225166,29.9959,176.1,176.02,36.1377796]
[1641127228677,34.00660617,176.1,176.03,4.0139796]
[1641127229377,29.9959,176.1,176.03,4.0139796]
[1641127229677,2.19144157,176.06,176.03,4.0139796]
[1641127229975,5.023,176.06,176.03,4.0139796]
[1641127230176,5.023,176.06,176.03,18.20277414]
[1641127230777,5.023,176.06,176.03,12.10251117]
[1641127230976,2.75345364,176.05,176.02,1.27948166]
[1641127231878,4.03292047,176.03,176.02,1.27948166]
[1641127238584,2.75345364,176.05,176.02,1.27948166]
[1641127238785,2.75345364,176.05,176.02,6.81448166]
[1641127239488,4.03154857,176.04,176.03,1.27948166]
[1641127240285,4.03154857,176.04,176.02,1.27948166]
[1641127240986,4.03154857,176.04,176.0,1.27948166]
[1641127241186,4.03154857,176.04,176.01,0.80855843]
[1641127241587,4.03154857,176.04,176.0,1.27948166]
[1641127241788,4.03154857,176.04,176.02,0.80855843]
[1641127242391,4.03154857,176.04,176.03,1.27948166]
[1641127243088,4.03154857,176.05,176.01,0.80855843]
[1641127243889,4.03154857,176.04,176.02,1.27948166]
[1641127246593,4.03154857,176.05,176.02,0.80855843]
[1641127247294,4.03154857,176.05,176.04,4.03135839]
[1641127250398,4.03154857,176.05,176.03,1.27948166]
[1641127250597,4.03154857,176.05,176.03,2.08804009]
[1641127250798,4.03154857,176.05,176.03,1.27948166]
[1641127251099,4.03154857,176.05,176.03,2.08804009]
[1641127251299,4.03154857,176.04,176.03,0.80855843]
[1641127252000,4.03154857,176.04,176.03,2.08804009]
[1641127254303,14.79542366,176.08,176.03,2.08804009]
[1641127254502,14.79542366,176.08,176.07,0.80855843]
[1641127255102,2.75313462,176.11,176.07,2.08804009]
[1641127255803,2.75313462,176.11,176.07,1.27948166]
[1641127256304,2.75313462,176.11,176.08,1.27948166]
[1641127256706,2.75313462,176.11,176.06,1.27948166]
[1641127257106,2.75313462,176.11,176.07,0.80855843]
[1641127258206,2.75313462,176.11,176.06,1.27948166]
[1641127258709,2.75313462,176.11,176.08,0.80855843]
[1641127259311,2.75313462,176.11,176.05,27.66479]
[1641127259609,2.75313462,176.11,176.07,0.80855843]
[1641127260011,58.00309,176.12,176.05,27.66479]
[1641127260509,58.00309,176.12,176.07,0.80855843]
[1641127261309,30.3383,176.12,176.07,0.80855843]
[1641127261911,30.3383,176.12,176.05,27.66479]
[1641127262111,30.3383,176.12,176.08,0.80855843]
[1641127262711,30.3383,176.12,176.11,0.80855843]
[1641127263012,27.66479,176.15,176.11,0.80855843]
[1641127263409,27.66479,176.15,176.12,0.80855843]
[1641127265235,27.66479,176.15,176.08,27.66479]
[1641127265412,27.66479,176.15,176.12,0.80855843]
[1641127265913,27.66479,176.15,176.08,27.66479]
[1641127266113,27.66479,176.15,176.13,0.80855843]
[1641127266316,27.66479,176.15,176.13,5.5]
[1641127266514,29.8602,176.17,176.13,5.5]
[1641127266715,39.70707904,176.18,176.13,5.5]
[1641127266916,39.70707904,176.18,176.13,6.30855843]
[1641127267115,39.70707904,176.18,176.13,5.5]
[1641127267316,39.70707904,176.18,176.13,6.30855843]
[1641127267716,2.73750305,176.17,176.13,5.5]
[1641127268521,2.73750305,176.17,176.15,0.80855843]
[1641127268724,12.04228904,176.19,176.16,0.80855843]
[1641127268921,31.2266,176.21,176.18,0.80855843]
[1641127269122,31.2266,176.21,176.18,7.44355843]
[1641127269321,59.46669382,176.23,176.18,6.635]
[1641127269522,12.77173524,176.2,176.18,6.635]
[1641127269719,12.77173524,176.2,176.19,0.80855843]
[1641127270524,10.02133297,176.2,176.19,0.80855843]
[1641127270723,47.70285574,176.28,176.19,56.13813843]
[1641127271024,47.70285574,176.28,176.19,55.32958]
[1641127271223,10.01945238,176.22,176.19,55.32958]
[1641127271422,10.01945238,176.22,176.2,0.80855843]
[1641127271622,10.01945238,176.22,176.19,49.69014685]
[1641127271821,50.70285574,176.29,176.19,49.69014685]
[1641127272022,3.0,176.28,176.19,49.69014685]
[1641127272221,3.0,176.29,176.19,49.69014685]
[1641127272423,4.273,176.28,176.14,3.0]
[1641127272722,34.93779,176.28,176.16,27.66479]
[1641127272921,31.3108,176.27,176.16,30.66479]
[1641127273121,31.3108,176.27,176.16,27.66479]
[1641127274322,34.3108,176.27,176.16,27.66479]
[1641127274524,31.3108,176.27,176.16,27.66479]
[1641127274723,27.66479,176.25,176.17,29.6906]
[1641127278127,34.37879,176.25,176.17,29.6906]
[1641127278928,3.0,176.23,176.13,27.66479]
[1641127279227,31.2774,176.22,176.14,31.499]
[1641127279630,3.0,176.23,176.14,31.499]
[1641127280232,30.2762,176.24,176.14,31.499]
[1641127282334,30.2762,176.24,176.14,36.383]
[1641127283135,33.2762,176.24,176.14,36.383]
[1641127284137,30.2762,176.24,176.14,36.383]
[1641127284738,33.2762,176.24,176.14,36.383]
[1641127284939,30.2762,176.24,176.14,36.383]
[1641127285138,33.2762,176.24,176.14,36.383]
[1641127285339,30.2762,176.24,176.14,36.383]
[1641127287141,30.2762,176.24,176.14,31.499]
[1641127287342,3.0,176.23,176.14,31.499]
[1641127287541,5.28,176.23,176.14,31.499]
[1641127287741,53.37355806,176.29,176.13,27.66479]
[1641127287742,99.38094945,176.39,176.22,7.0]
[1641127288042,31.8273,176.61,176.59,2306.62690963]
[1641127288244,29.15050211,176.63,176.59,2180.63416515]
[1641127288442,29.15050211,176.63,176.59,2152.77586515]
[1641127288642,3.21881138,176.62,176.59,2152.77586515]
[1641127288842,3.21881138,176.62,176.59,4.722]
[1641127289042,3.21881138,176.62,176.61,27.66479]
[1641127289244,3.21881138,176.63,176.61,27.66479]
[1641127289543,3.21881138,176.63,176.59,4.722]
[1641127289744,3.21881138,176.63,176.59,0.0001]
[1641127290344,3.21881138,176.63,176.55,4.531]